bitfinex/quotes_BTCUSD_20240828
["timestamp","ask_amount","ask_price","bid_price","bid_amount"]
[1724805248685,1.56844716,59362.0,59361.0,0.001816]
[1724805250477,1.61784221,59362.0,59361.0,0.001816]
[1724805251513,1.95475721,59362.0,59361.0,0.001816]
[1724805252220,0.99482721,59362.0,59361.0,0.001816]
[1724805252653,0.88262205,59362.0,59361.0,0.001816]
[1724805253826,0.54570705,59362.0,59361.0,0.001816]
[1724805254065,0.88262205,59362.0,59361.0,0.001816]
[1724805254295,0.04033505,59362.0,59361.0,0.152616]
[1724805254504,0.20384205,59362.0,59361.0,0.152616]
[1724805254715,0.03439505,59362.0,59361.0,0.152616]
[1724805254921,0.03439505,59362.0,59361.0,0.001816]
[1724805254922,0.70822505,59362.0,59361.0,0.001816]
[1724805255126,0.87668205,59362.0,59361.0,0.001816]
[1724805255330,0.168457,59362.0,59361.0,0.001816]
[1724805255738,0.168457,59362.0,59361.0,0.000816]
[1724805255739,0.842287,59362.0,59361.0,0.000816]
[1724805255947,0.848287,59362.0,59361.0,0.001816]
[1724805256152,0.853197,59362.0,59361.0,0.001816]
[1724805256355,0.847197,59362.0,59361.0,0.000816]
[1724805256557,0.847197,59362.0,59361.0,0.004816]
[1724805256765,0.510282,59362.0,59361.0,0.004816]
[1724805256976,0.173367,59362.0,59361.0,0.004816]
[1724805257196,0.00491,59362.0,59361.0,0.004816]
[1724805257622,0.173367,59362.0,59361.0,0.004816]
[1724805258034,0.510282,59362.0,59361.0,0.004816]
[1724805258238,0.847197,59362.0,59361.0,0.004816]
[1724805258854,0.847197,59362.0,59361.0,0.000816]
[1724805259548,0.847197,59362.0,59361.0,0.003816]
[1724805260284,0.847197,59362.0,59361.0,0.000816]
[1724805260487,0.510282,59362.0,59361.0,0.000816]
[1724805260714,0.510282,59362.0,59361.0,0.006816]
[1724805261721,0.847197,59362.0,59361.0,0.006816]
[1724805261897,0.510282,59362.0,59361.0,0.006816]
[1724805262097,0.847197,59362.0,59361.0,0.006816]
[1724805263279,0.510282,59362.0,59361.0,0.006816]
[1724805263699,0.847197,59362.0,59361.0,0.006816]
[1724805264970,1.04448465,59362.0,59361.0,0.006816]
[1724805265188,1.38139965,59362.0,59361.0,0.006816]
[1724805265590,1.38139965,59362.0,59361.0,0.000816]
[1724805265850,1.38139965,59362.0,59361.0,0.006816]
[1724805266286,1.38139965,59362.0,59361.0,0.000816]
[1724805266499,1.04448465,59362.0,59361.0,0.000816]
[1724805266682,1.38139965,59362.0,59361.0,0.000816]
[1724805266927,0.96038191,59362.0,59361.0,0.000816]
[1724805267112,1.29729691,59362.0,59361.0,0.000816]
[1724805268868,1.29729691,59362.0,59361.0,0.002816]
[1724805269071,0.96038191,59362.0,59361.0,0.002816]
[1724805269535,1.29729691,59362.0,59361.0,0.002816]
[1724805270399,1.38319691,59362.0,59361.0,0.002816]
[1724805270591,1.38319691,59362.0,59361.0,0.000816]
[1724805273104,1.29729691,59362.0,59361.0,0.000816]
[1724805273310,0.62346691,59362.0,59361.0,0.000816]
[1724805273520,0.96038191,59362.0,59361.0,0.000816]
[1724805274104,0.51097797,59362.0,59361.0,0.000816]
[1724805275422,0.84789297,59362.0,59361.0,0.002816]
[1724805275611,0.51097797,59362.0,59361.0,0.002816]
[1724805275826,0.51097797,59362.0,59361.0,0.073016]
[1724805275827,0.17406297,59362.0,59361.0,0.073016]
[1724805276222,0.00560597,59362.0,59361.0,0.073016]
[1724805276431,0.17406297,59362.0,59361.0,0.073016]
[1724805276848,0.51097797,59362.0,59361.0,0.073016]
[1724805279145,0.84789297,59362.0,59361.0,0.002816]
[1724805280636,1.79461191,59362.0,59361.0,0.002816]
[1724805281803,1.79461191,59362.0,59361.0,0.000816]
[1724805282249,1.80061191,59362.0,59361.0,0.001816]
[1724805282465,1.39579691,59362.0,59361.0,0.000816]
[1724805282891,1.30629691,59362.0,59361.0,0.000816]
[1724805283123,1.29729691,59362.0,59361.0,0.000816]
[1724805283356,1.30329691,59362.0,59361.0,0.001816]
[1724805283572,1.72711191,59362.0,59361.0,0.001816]
[1724805283780,1.72111191,59362.0,59361.0,0.000816]
[1724805284506,1.38419691,59362.0,59361.0,0.000816]
[1724805284741,0.00188871,59367.0,59361.0,0.000816]
[1724805284742,0.09917612,59371.0,59362.0,0.0902]
[1724805284976,0.16735971,59388.0,59362.0,0.0902]
[1724805284977,0.12464488,59394.0,59393.0,0.0902]
[1724805285218,0.51439486,59404.0,59393.0,0.43844905]
[1724805285431,0.008987,59404.0,59399.0,0.29474905]
[1724805285666,0.008987,59404.0,59395.0,0.0902]
[1724805285875,0.177326,59404.0,59395.0,0.0902]
[1724805286555,0.008987,59404.0,59395.0,0.0902]
[1724805286845,0.345682,59403.0,59388.0,0.0916]
[1724805287032,0.44458695,59399.0,59388.0,0.0916]
[1724805287255,0.168356,59398.0,59388.0,0.0916]
[1724805287455,0.10802169,59398.0,59388.0,0.0916]
[1724805288305,0.10802169,59398.0,59395.0,0.01]
[1724805288513,0.10802169,59398.0,59388.0,0.0916]
[1724805288964,0.19942169,59397.0,59388.0,0.002]
[1724805289195,0.19942169,59397.0,59376.0,0.0858]
[1724805289196,0.336762,59389.0,59376.0,0.0858]
[1724805289489,0.10951024,59389.0,59381.0,0.50540786]
[1724805289716,0.0914,59397.0,59376.0,0.0858]
[1724805289717,0.10915578,59388.0,59376.0,0.0858]
[1724805289933,0.168387,59387.0,59376.0,0.0858]
[1724805290142,0.10915578,59388.0,59376.0,0.0858]
[1724805290353,0.168388,59387.0,59376.0,0.0858]
[1724805290569,0.10915578,59388.0,59376.0,0.0858]
[1724805292244,0.16839,59386.0,59376.0,0.0858]
[1724805292453,0.10915578,59388.0,59376.0,0.0878]
[1724805292454,0.168392,59385.0,59376.0,0.0878]
[1724805292669,0.336751,59391.0,59376.0,0.0878]
[1724805292884,0.10979384,59384.0,59369.0,0.0846]
[1724805293104,0.168408,59380.0,59372.0,0.00099]
[1724805293348,0.1684,59383.0,59372.0,0.00099]
[1724805293561,0.10979384,59384.0,59372.0,0.00099]
[1724805293562,0.11021927,59382.0,59372.0,0.00099]
[1724805293772,0.11021927,59382.0,59376.0,0.005]
[1724805293974,0.27862127,59382.0,59376.0,0.005]
[1724805295038,0.168404,59381.0,59376.0,0.005]
[1724805295242,0.11021927,59382.0,59372.0,0.00099]
[1724805295451,0.169408,59380.0,59372.0,0.00899]
[1724805295666,0.001,59380.0,59372.0,0.00899]
[1724805296096,0.168404,59381.0,59372.0,0.00099]
[1724805296307,0.11021927,59382.0,59376.0,0.006]
[1724805296963,0.02638335,59384.0,59377.0,0.1542]
[1724805297227,0.40363,59395.0,59377.0,0.1542]
[1724805297228,0.0719,59395.0,59377.0,0.1542]
[1724805297447,0.168406,59381.0,59377.0,0.1542]
[1724805297656,0.505201,59383.0,59377.0,0.1542]
[1724805297861,0.1684,59383.0,59377.0,0.1542]
[1724805298079,0.336775,59387.0,59377.0,0.1542]
[1724805298309,0.168393,59385.0,59377.0,0.1542]
[1724805298523,0.168399,59383.0,59377.0,0.1542]
[1724805298734,0.001,59380.0,59377.0,0.1542]
[1724805299155,0.336792,59384.0,59377.0,0.1542]
[1724805299385,0.336792,59384.0,59377.0,0.1572]
[1724805299386,0.44658584,59384.0,59377.0,0.1572]
[1724805299620,0.336842,59375.0,59374.0,0.00099]
[1724805299854,0.95274974,59375.0,59374.0,0.00099]
[1724805300058,0.336876,59369.0,59361.0,0.090016]
[1724805300279,0.336863,59372.0,59361.0,0.090016]
[1724805300497,0.0669,59378.0,59361.0,0.093385]
[1724805300498,0.336826,59378.0,59361.0,0.093385]
[1724805300719,0.95341794,59378.0,59377.0,0.007]
[1724805300951,1.28910927,59378.0,59377.0,0.007]
[1724805301825,1.31549629,59378.0,59377.0,0.007]
[1724805302041,1.31549629,59378.0,59361.0,0.090016]
[1724805302042,0.168433,59371.0,59361.0,0.090016]
[1724805302262,0.168436,59370.0,59361.0,0.090016]
[1724805302709,0.336861,59372.0,59361.0,0.090016]
[1724805302933,0.168435,59370.0,59361.0,0.090016]
[1724805303142,0.168435,59370.0,59363.0,0.00098]
[1724805303574,0.169435,59370.0,59363.0,0.00098]
[1724805303814,0.168438,59369.0,59363.0,0.00098]
[1724805304666,0.168452,59364.0,59363.0,0.00098]
[1724805304942,0.168452,59364.0,59361.0,0.090016]
[1724805304943,0.168457,59362.0,59361.0,0.000816]
[1724805305165,0.11528702,59378.0,59361.0,0.000816]
[1724805305380,0.16843,59372.0,59361.0,0.000816]
[1724805305615,0.168432,59371.0,59362.0,0.0874]
[1724805306062,0.168432,59371.0,59362.0,0.0907689]
[1724805306292,0.168435,59370.0,59362.0,0.0874]
[1724805306515,0.336854,59373.0,59362.0,0.0874]
[1724805306516,0.168438,59369.0,59362.0,0.0874]
[1724805306726,0.336868,59371.0,59362.0,0.0874]
[1724805306931,0.168436,59370.0,59362.0,0.0974]
[1724805307744,0.16844,59368.0,59362.0,0.0974]
[1724805308165,0.16844,59368.0,59362.0,0.09838]
[1724805308588,0.168453,59364.0,59362.0,0.09838]
[1724805308806,0.168449,59366.0,59362.0,0.09838]
[1724805309001,0.168449,59366.0,59362.0,0.08838]
[1724805309211,0.168449,59366.0,59362.0,0.09938]
[1724805309632,0.168449,59366.0,59362.0,0.08838]
[1724805309851,0.001,59364.0,59362.0,0.10238]
[1724805310525,0.001,59364.0,59362.0,0.11974878]
[1724805310955,0.336863,59372.0,59362.0,0.09174878]
[1724805311165,0.336867,59371.0,59362.0,0.08838]
[1724805311385,0.168438,59369.0,59362.0,0.08838]
[1724805312228,0.168438,59369.0,59362.0,0.089197]
[1724805313128,0.336867,59371.0,59362.0,0.089197]
[1724805313129,0.336865,59371.0,59362.0,0.089197]
[1724805313359,0.168437,59370.0,59362.0,0.089197]
[1724805314102,0.001,59369.0,59362.0,0.101197]
[1724805314303,0.169438,59369.0,59362.0,0.089197]
[1724805314682,0.169438,59369.0,59362.0,0.100197]
[1724805315979,0.001,59370.0,59362.0,0.100197]
[1724805316182,0.02638873,59378.0,59365.0,0.0692]
[1724805316401,0.168385,59388.0,59378.0,0.0973]
[1724805316646,0.345703,59400.0,59379.0,0.46648669]
[1724805316647,0.336746,59392.0,59379.0,0.46648669]
[1724805316835,0.336746,59392.0,59380.0,0.0973]
[1724805317044,0.168376,59391.0,59380.0,0.10066763]
[1724805317250,0.336734,59395.0,59380.0,0.2691284]
[1724805317454,0.008998,59400.0,59380.0,0.2691284]
[1724805317455,0.168362,59396.0,59380.0,0.2691284]
[1724805317885,0.336714,59398.0,59380.0,0.3029184]
[1724805318080,0.168381,59389.0,59380.0,0.26576077]
[1724805318292,0.336747,59392.0,59380.0,0.26576077]
[1724805318489,0.168374,59392.0,59380.0,0.26576077]
[1724805319329,0.168368,59394.0,59380.0,0.28312823]
[1724805319527,0.16837,59393.0,59380.0,0.35592823]
[1724805319754,0.168373,59392.0,59380.0,0.35592823]
[1724805320146,0.16837,59393.0,59380.0,0.34192823]
[1724805320354,0.16837,59393.0,59380.0,0.44192823]
[1724805320558,0.16837,59393.0,59380.0,0.45592823]
[1724805320710,0.16837,59393.0,59380.0,0.44192823]
[1724805320912,0.336723,59396.0,59380.0,0.44192823]
[1724805321113,0.00069605,59381.0,59380.0,0.45592823]
[1724805322184,0.00069605,59381.0,59380.0,0.48971823]
[1724805322600,0.00069605,59381.0,59380.0,0.45256077]
[1724805322768,0.00069605,59381.0,59380.0,0.43856077]
[1724805323559,0.00069605,59381.0,59380.0,0.45256077]
[1724805323971,0.00069605,59381.0,59380.0,0.43856077]
[1724805324197,0.00069605,59381.0,59380.0,0.45256077]
[1724805325415,0.00069605,59381.0,59380.0,0.43856077]
[1724805325818,0.00069605,59381.0,59380.0,0.45256077]
[1724805326023,0.00069605,59381.0,59380.0,0.43856077]
[1724805326224,0.00069605,59381.0,59380.0,0.2701]
[1724805326927,0.00069605,59381.0,59380.0,0.2841]
[1724805327305,0.00069605,59381.0,59380.0,0.114]
[1724805327457,0.00069605,59381.0,59380.0,0.014]
[1724805328271,0.00069605,59381.0,59380.0,0.18246077]
[1724805328424,0.00069605,59381.0,59380.0,0.27112824]
[1724805328842,0.00069605,59381.0,59380.0,0.28512824]
[1724805329252,0.00069605,59381.0,59380.0,0.27112824]
[1724805329461,0.00069605,59381.0,59380.0,0.28176077]
[1724805329664,0.00069605,59381.0,59380.0,0.014]
[1724805329908,0.00069605,59381.0,59378.0,0.1]
[1724805330140,0.00069605,59381.0,59380.0,0.014]
[1724805330707,0.16910005,59381.0,59380.0,0.014]
[1724805331115,1.38391789,59381.0,59380.0,0.014]
[1724805331358,1.95475036,59381.0,59380.0,0.014]
[1724805331519,0.62995057,59381.0,59377.0,0.000817]
[1724805331741,1.278587,59378.0,59377.0,0.000817]
[1724805331931,1.40183044,59378.0,59377.0,0.000817]
[1724805333287,1.40183044,59378.0,59377.0,0.003817]
[1724805334267,0.28113617,59378.0,59377.0,0.003817]
[1724805334471,0.01302417,59378.0,59377.0,0.099917]
[1724805334886,0.02708199,59381.0,59377.0,0.099917]
[1724805335152,0.02708199,59381.0,59378.0,0.17182878]
[1724805335319,0.02708199,59381.0,59378.0,0.16846077]
[1724805335320,0.0129572,59380.0,59378.0,0.16846077]
[1724805335527,0.00069605,59381.0,59378.0,0.16846077]
[1724805335729,0.00069605,59381.0,59379.0,0.00336778]
[1724805336003,0.00069605,59381.0,59380.0,0.64158631]
[1724805336204,0.00069605,59381.0,59380.0,0.66458631]
[1724805336420,0.00069605,59381.0,59380.0,0.76958631]
[1724805336852,0.00069605,59381.0,59380.0,1.23560638]
[1724805337080,0.00069605,59381.0,59380.0,1.27037638]
[1724805337302,0.00069605,59381.0,59380.0,1.14654132]
[1724805337510,0.00069605,59381.0,59380.0,1.11275132]
[1724805337903,0.00169605,59381.0,59380.0,1.12675132]
[1724805338113,0.00169605,59381.0,59380.0,1.20005662]
[1724805338320,0.00169605,59381.0,59380.0,1.25684662]
[1724805338453,0.00169605,59381.0,59380.0,1.33241996]
[1724805338663,0.00169605,59381.0,59380.0,1.34641996]
[1724805338871,0.00069605,59381.0,59380.0,1.33241996]
[1724805339081,0.00069605,59381.0,59380.0,1.31841996]
[1724805339284,0.00169605,59381.0,59380.0,1.34642949]
[1724805339503,0.00169605,59381.0,59380.0,0.97287388]
[1724805340601,0.00169605,59381.0,59380.0,2.44241707]
[1724805340811,0.00169605,59381.0,59380.0,2.37471022]
[1724805340812,0.00069605,59381.0,59380.0,2.37471022]
[1724805341021,0.00089871,59388.0,59383.0,0.12669]
[1724805341022,0.168389,59386.0,59383.0,0.12669]
[1724805341256,0.168395,59384.0,59383.0,0.05036992]
[1724805341488,0.168395,59384.0,59381.0,0.0755485]
[1724805341489,0.00089871,59388.0,59381.0,0.0033679]
[1724805341704,0.00089871,59388.0,59381.0,0.16846077]
[1724805341937,0.00089871,59388.0,59383.0,0.00098]
[1724805342166,0.00089871,59388.0,59383.0,0.01498]
[1724805342167,0.001,59386.0,59383.0,0.01498]
[1724805342598,0.00089871,59388.0,59383.0,0.00098]
[1724805343294,0.268995,59384.0,59383.0,0.00098]
[1724805343506,1.020277,59384.0,59383.0,0.00098]
[1724805343722,1.020277,59384.0,59377.0,0.05118692]
[1724805343723,0.505237,59378.0,59377.0,0.000817]
[1724805344598,0.842062,59378.0,59377.0,0.000817]
[1724805344815,0.942662,59378.0,59377.0,0.000817]
[1724805345428,0.943662,59378.0,59377.0,0.014817]
[1724805345889,0.942662,59378.0,59377.0,0.000817]
[1724805346092,0.942662,59378.0,59377.0,0.003817]
[1724805346318,0.605837,59378.0,59377.0,0.003817]
[1724805346532,0.269012,59378.0,59377.0,0.000817]
[1724805346771,0.269012,59378.0,59377.0,0.003817]
[1724805346994,0.505237,59378.0,59377.0,0.179217]
[1724805347158,0.092,59389.0,59377.0,0.71564117]
[1724805347362,0.092,59389.0,59377.0,0.179217]
[1724805347568,0.092,59389.0,59377.0,0.005817]
[1724805347569,0.336787,59385.0,59377.0,0.005817]
[1724805347773,0.168402,59382.0,59377.0,0.005817]
[1724805347975,0.168398,59383.0,59377.0,0.003817]
[1724805348174,0.168398,59383.0,59377.0,0.000817]
[1724805348379,0.01954637,59382.0,59377.0,0.000817]
[1724805348522,0.168404,59381.0,59377.0,0.000817]
[1724805348727,0.16930271,59381.0,59377.0,0.000817]
[1724805348990,0.01961457,59380.0,59377.0,0.005817]
[1724805349194,0.01961457,59380.0,59377.0,0.008817]
[1724805349395,0.01961457,59380.0,59377.0,0.003817]
[1724805349726,0.01961457,59380.0,59377.0,0.009817]
[1724805349927,0.01961457,59380.0,59377.0,0.003817]
[1724805350597,0.01961457,59380.0,59377.0,0.000817]
[1724805350805,0.01961457,59380.0,59377.0,0.005817]
[1724805351263,0.168412,59378.0,59377.0,0.000817]
[1724805351681,0.95984147,59378.0,59377.0,0.006817]
[1724805351895,0.62301647,59378.0,59377.0,0.006817]
[1724805352103,0.01957947,59378.0,59377.0,0.013817]
[1724805352309,0.01957947,59378.0,59377.0,0.007817]
[1724805352522,0.16841,59379.0,59377.0,0.007817]
[1724805352523,0.00089871,59381.0,59377.0,0.000817]
[1724805352730,0.01957947,59378.0,59377.0,0.000817]
[1724805352943,0.00089871,59381.0,59377.0,0.000817]
[1724805353166,0.00089871,59381.0,59377.0,0.009817]
[1724805353581,0.001,59378.0,59377.0,0.017817]
[1724805353784,0.001,59378.0,59377.0,0.17727777]
[1724805354667,0.00089871,59381.0,59377.0,0.17264529]
[1724805354882,0.00089871,59381.0,59378.0,0.16846077]
[1724805355057,0.00089871,59381.0,59379.0,0.00336752]
[1724805355301,0.00089871,59381.0,59380.0,0.16846077]
[1724805356305,0.00089871,59381.0,59361.0,0.000816]
[1724805356306,0.168455,59363.0,59361.0,0.000816]
[1724805356552,1.7195484,59363.0,59361.0,0.000816]
[1724805356794,1.37112289,59363.0,59361.0,0.000816]
[1724805357214,1.14655994,59363.0,59361.0,0.000816]
[1724805357628,1.14655994,59363.0,59362.0,0.005817]
[1724805357629,1.48346994,59363.0,59362.0,0.005817]
[1724805358099,1.48346994,59363.0,59362.0,0.000817]
[1724805358553,1.48546994,59363.0,59362.0,0.000817]
[1724805359235,1.48546994,59363.0,59362.0,0.005817]
[1724805359707,1.48546994,59363.0,59362.0,0.000817]
[1724805360139,1.49946994,59363.0,59362.0,0.001817]
[1724805360345,1.50986502,59363.0,59362.0,0.000817]
[1724805360574,1.51986502,59363.0,59362.0,0.001817]
[1724805361181,1.51986502,59363.0,59362.0,0.000817]
[1724805361182,1.50986502,59363.0,59362.0,0.000817]
[1724805361291,1.52386502,59363.0,59362.0,0.001817]
[1724805361495,1.49746994,59363.0,59362.0,0.001817]
[1724805361700,1.50846994,59363.0,59362.0,0.002817]
[1724805363421,1.64332809,59363.0,59362.0,0.002817]
[1724805363873,2.44514809,59363.0,59362.0,0.001817]
[1724805364000,2.43114809,59363.0,59362.0,0.001817]
[1724805364192,2.44114809,59363.0,59362.0,0.002817]
[1724805364623,2.43114809,59363.0,59362.0,0.001817]
[1724805364988,2.45754689,59363.0,59362.0,0.002817]
[1724805365114,2.47154689,59363.0,59362.0,0.002817]
[1724805365314,2.46054689,59363.0,59362.0,0.001817]
[1724805365574,2.47054689,59363.0,59362.0,0.002817]
[1724805365974,2.46054689,59363.0,59362.0,0.001817]
[1724805366209,2.46954689,59363.0,59362.0,0.002817]
[1724805366416,1.99277874,59363.0,59362.0,0.002817]
[1724805366621,0.88481289,59363.0,59362.0,0.002817]
[1724805367504,0.99715994,59363.0,59362.0,0.002817]
[1724805367724,1.33406994,59363.0,59362.0,0.002817]
[1724805368403,1.67097994,59363.0,59362.0,0.002817]
[1724805368619,1.93737793,59363.0,59362.0,0.002817]
[1724805368841,2.03737793,59363.0,59362.0,0.002817]
[1724805369041,2.48138793,59363.0,59362.0,0.002817]
[1724805370353,1.94887994,59363.0,59362.0,0.002817]
[1724805370557,1.97527869,59363.0,59362.0,0.002817]
[1724805371597,1.99827869,59363.0,59362.0,0.002817]
[1724805371816,1.36046869,59363.0,59362.0,0.002817]
[1724805374925,1.24791894,59363.0,59362.0,0.002817]
[1724805375384,0.04253789,59363.0,59362.0,0.002817]
[1724805375599,0.04253789,59363.0,59362.0,0.34614655]
[1724805375857,0.04253789,59363.0,59362.0,0.37077777]
[1724805376095,0.023,59363.0,59362.0,0.50456777]
[1724805376306,0.009,59363.0,59362.0,0.50356777]
[1724805376526,0.00089871,59381.0,59364.0,0.005]
[1724805376746,0.50540786,59373.0,59370.0,0.0912]
[1724805376968,0.01806167,59372.0,59371.0,0.16846077]
[1724805377201,0.00089871,59381.0,59371.0,0.16846077]
[1724805377431,0.00089871,59381.0,59372.0,0.09456798]
[1724805377659,0.00089871,59381.0,59375.0,0.1708]
[1724805377660,0.01806167,59380.0,59375.0,0.1708]
[1724805377875,0.00089871,59381.0,59377.0,0.0912]
[1724805378107,0.00089871,59381.0,59379.0,0.1708]
[1724805378367,0.336726,59396.0,59374.0,0.3679634]
[1724805378368,0.168314,59413.0,59380.0,0.34762832]
[1724805378574,0.008998,59422.0,59399.0,0.7409268]
[1724805378801,0.008998,59422.0,59409.0,0.005]
[1724805379011,0.008998,59422.0,59415.0,0.3729634]
[1724805379222,0.008998,59422.0,59415.0,0.4959634]
[1724805379448,0.008998,59422.0,59415.0,0.6643634]
[1724805379655,0.008998,59422.0,59415.0,0.83282417]
[1724805379876,0.008998,59422.0,59415.0,0.80482417]
[1724805380309,0.009987,59416.0,59415.0,0.81882417]
[1724805380525,0.009987,59416.0,59415.0,0.1824]
[1724805380730,0.008987,59416.0,59415.0,0.1824]
[1724805381003,0.16832,59411.0,59407.0,0.0958]
[1724805381214,0.008987,59416.0,59407.0,0.0958]
[1724805381215,0.168308,59415.0,59407.0,0.0958]
[1724805381451,0.009987,59416.0,59408.0,0.17182698]
[1724805382104,0.009987,59416.0,59409.0,0.1]
[1724805382325,0.009987,59416.0,59415.0,0.014]
[1724805382543,0.008987,59416.0,59415.0,0.28086077]
[1724805382744,0.008987,59416.0,59415.0,0.37022614]
[1724805382949,0.008987,59416.0,59415.0,0.37886077]
[1724805383380,0.008987,59416.0,59415.0,0.36686077]
[1724805383584,0.008987,59416.0,59415.0,0.37786077]
[1724805384225,0.008987,59416.0,59415.0,0.37884077]
[1724805384443,0.008987,59416.0,59415.0,0.39284077]
[1724805385505,0.008987,59427.0,59424.0,0.005]
[1724805385714,0.008987,59427.0,59424.0,0.29486077]
[1724805385945,0.008987,59427.0,59424.0,0.36686077]
[1724805386372,0.008987,59427.0,59424.0,0.40065077]
[1724805387221,0.008987,59427.0,59426.0,0.03879]
[1724805387429,0.008987,59436.0,59435.0,0.4663634]
[1724805387648,0.008987,59436.0,59435.0,0.73482417]
[1724805389182,0.008987,59436.0,59435.0,0.73581417]
[1724805389602,0.008987,59436.0,59435.0,0.74981417]
[1724805390841,0.008987,59436.0,59435.0,0.29745077]
[1724805393431,0.008987,59436.0,59435.0,0.02899]
[1724805393909,0.01901043,59436.0,59435.0,0.02899]
[1724805394112,0.177235,59436.0,59435.0,0.02899]
[1724805394243,0.513731,59436.0,59435.0,0.02899]
[1724805394452,0.01901116,59436.0,59435.0,0.02899]
[1724805394852,0.01901116,59436.0,59435.0,0.19745077]
[1724805395085,0.01901116,59436.0,59435.0,0.18345077]
[1724805395513,0.008987,59436.0,59435.0,0.18845077]
[1724805395715,0.008987,59436.0,59435.0,0.16945077]
[1724805396176,0.008987,59436.0,59435.0,0.18845077]
[1724805396609,0.008987,59436.0,59435.0,0.18345077]
[1724805397025,0.008987,59436.0,59435.0,0.02899]
[1724805397467,0.52373279,59436.0,59435.0,0.02899]
[1724805398142,0.18723679,59436.0,59435.0,0.02899]
[1724805398579,0.52373279,59436.0,59435.0,0.02899]
[1724805398805,0.01898879,59436.0,59435.0,0.02899]
[1724805399269,0.18723679,59436.0,59435.0,0.02899]
[1724805399507,0.52373279,59436.0,59435.0,0.02899]
[1724805399739,1.03162879,59436.0,59435.0,0.02899]
[1724805399969,0.69513279,59436.0,59435.0,0.028]
[1724805400435,0.69513279,59436.0,59435.0,0.014]
[1724805400658,1.03162879,59436.0,59435.0,0.014]
[1724805401092,0.69513279,59436.0,59435.0,0.014]
[1724805401548,1.03162879,59436.0,59435.0,0.014]
[1724805401762,1.03162879,59436.0,59435.0,0.019]
[1724805401977,1.36812479,59436.0,59435.0,0.005]
[1724805402184,1.47012674,59436.0,59435.0,0.005]
[1724805402400,1.47012674,59436.0,59435.0,0.01]
[1724805402615,1.47012674,59436.0,59428.0,0.00099]
[1724805402850,0.504804,59429.0,59428.0,0.00099]
[1724805403079,0.84134,59429.0,59428.0,0.00099]
[1724805403535,1.28375065,59429.0,59428.0,0.00099]
[1724805403760,1.28375065,59429.0,59428.0,0.00199]
[1724805404028,1.31011307,59429.0,59428.0,0.00199]
[1724805404459,1.31011307,59429.0,59428.0,0.001]
[1724805404872,1.41310591,59429.0,59428.0,0.001]
[1724805405088,0.504888,59419.0,59418.0,0.00098]
[1724805405308,0.168291,59421.0,59418.0,0.00098]
[1724805405523,0.00961912,59419.0,59418.0,0.00098]
[1724805405739,0.33034242,59419.0,59418.0,0.00098]
[1724805405968,0.60715754,59419.0,59418.0,0.00098]
[1724805406195,0.94374954,59419.0,59418.0,0.01298]
[1724805406420,0.94374954,59419.0,59418.0,0.02098]
[1724805406642,0.94374954,59419.0,59418.0,0.00898]
[1724805406868,0.94374954,59419.0,59418.0,0.00098]
[1724805407105,0.94374954,59419.0,59418.0,0.01998]
[1724805407786,1.5661353,59419.0,59418.0,0.01998]
[1724805408010,0.0981,59405.0,59388.0,0.43447526]
[1724805408229,0.168365,59395.0,59389.0,0.16846077]
[1724805408423,0.336721,59397.0,59389.0,0.16846077]
[1724805408630,0.168373,59392.0,59388.0,0.43447526]
[1724805408839,0.01293452,59396.0,59388.0,0.16846077]
[1724805409050,0.505097,59395.0,59388.0,0.16846077]
[1724805409267,0.00956698,59395.0,59389.0,0.71062417]
[1724805409491,0.32697488,59419.0,59389.0,0.71062417]
[1724805409492,0.50540786,59408.0,59392.0,0.1017]
[1724805409699,0.50540786,59408.0,59407.0,0.3679634]
[1724805409907,0.0745,59420.0,59401.0,0.1017]
[1724805409908,0.00764437,59407.0,59401.0,0.1017]
[1724805410116,0.00764437,59407.0,59403.0,0.0725]
[1724805410117,0.16833,59407.0,59403.0,0.0725]
[1724805410324,0.07786754,59420.0,59403.0,0.0725]
[1724805410548,0.168317,59412.0,59403.0,0.07586636]
[1724805410754,0.003,59408.0,59403.0,0.07586636]
[1724805410950,0.168317,59412.0,59403.0,0.07586636]
[1724805411167,0.336628,59413.0,59403.0,0.24432713]
[1724805411366,0.168323,59410.0,59406.0,0.00099]
[1724805411859,0.168318,59412.0,59407.0,0.003]
[1724805412063,0.163318,59412.0,59407.0,0.003]
[1724805412262,0.336606,59417.0,59407.0,0.003]
[1724805412539,0.336606,59417.0,59406.0,0.00099]
[1724805412540,0.168315,59413.0,59406.0,0.00099]
[1724805412770,0.336606,59417.0,59406.0,0.00099]
[1724805412973,0.001,59407.0,59406.0,0.17981718]
[1724805413389,0.336586,59421.0,59406.0,0.27281718]
[1724805413592,0.168298,59419.0,59407.0,0.16846077]
[1724805413983,0.336568,59424.0,59408.0,0.00336592]
[1724805414208,0.001,59417.0,59409.0,0.16846077]
[1724805414446,0.168293,59420.0,59410.0,0.00336578]
[1724805414600,0.168293,59420.0,59411.0,0.16846077]
[1724805414801,0.16829,59422.0,59413.0,0.0921]
[1724805415009,0.0263666,59428.0,59415.0,0.0758]
[1724805415217,0.5491,59439.0,59422.0,0.0921]
[1724805415218,0.336502,59435.0,59422.0,0.0921]
[1724805415437,0.50540786,59428.0,59423.0,0.17182601]
[1724805415640,0.0978,59438.0,59423.0,0.17182601]
[1724805415641,0.336508,59434.0,59423.0,0.17182601]
[1724805415848,0.168267,59430.0,59423.0,0.17182601]
[1724805416097,0.336508,59434.0,59423.0,0.17182601]
[1724805416266,0.168263,59431.0,59428.0,0.00099]
[1724805416629,0.33652,59432.0,59428.0,0.00099]
[1724805416848,0.168261,59432.0,59428.0,0.00099]
[1724805417054,0.336514,59433.0,59428.0,0.00099]
[1724805417256,0.168265,59430.0,59428.0,0.00099]
[1724805417698,0.168265,59430.0,59428.0,0.00119256]
[1724805417902,1.01194,59429.0,59428.0,0.00119256]
[1724805418109,0.93404,59429.0,59428.0,0.00020256]
[1724805418609,0.84134,59429.0,59428.0,0.00020256]
[1724805419987,0.84134,59429.0,59428.0,0.00120256]